Cogmind - Beta 14 @@@ ROGUE MODE // 2024.08.25 @ 20:33:44 Player: Nilson Result: Self-destructed Performance ------------- Evolutions (1) 500 Regions Visited (2) 400 Robots Destroyed (12) 60 Value Destroyed (288) 288 Prototype IDs (1) 20 Alien Tech Used (0) 0 Bonus (0) 0 TOTAL SCORE: 1268 Bonus ------- None Cogmind --------- Core Integrity 392/400 Matter 227/300 Energy 94/125 System Corruption 7% Temperature Cool (36) Movement Core (450) Ox8 Location -9/Materials Parts ------- > --- POWER (1) -------- Light Ion Engine > --- PROPULSION (2) --- (None) > --- UTILITY (4) ------ Large Storage Unit Visual Processing Unit > --- WEAPON (2) ------- Particle Gun > --- INVENTORY (15) --- Hover Unit Flight Unit Improved Heat Sink Large Battery (200) ECM Suite Small Laser Peak State ------------ > --- POWER ------------ Light Ion Engine > --- PROPULSION ------- Light Treads > --- UTILITY ---------- Large Storage Unit Structural Scanner Visual Processing Unit > --- WEAPON ----------- Light Assault Rifle Improved Assault Rifle > --- INVENTORY -------- Hover Unit Flight Unit Improved Heat Sink Large Battery ECM Suite Small Laser Particle Gun Improved Assault Rifle [Rating: 11] Favorites ----------- Power Light Ion Engine Engine Light Ion Engine Propulsion Light Treads Treads Light Treads Hover Unit Hover Unit Flight Unit Flight Unit Utility Large Storage Unit Device Sensor Array Storage Large Storage Unit Processor Visual Processing Unit Weapon Small Laser Energy Gun Small Laser Ballistic Gun Light Assault Rifle Build | -11 -10 -9 ------- Run | Yrd Mat Mat Slots Evolved 2 | . . 2 Power . | . . . Propulsion . | . . . Utility 2 | . . 2 Weapon . | . . . Parts Attached 18 | 6 8 4 Power 2 | 1 1 . Engine 2 | 1 1 . Core . | . . . Reactor . | . . . Propulsion 5 | 2 3 . Treads 3 | 2 1 . Leg . | . . . Wheel . | . . . Hover 1 | . 1 . Flight 1 | . 1 . Utility 5 | 1 2 2 Device 2 | . 1 1 Storage 2 | 1 1 . Processor 1 | . . 1 Hackware . | . . . Protection . | . . . Artifact . | . . . Weapon 6 | 2 2 2 Energy Gun 4 | 2 1 1 Energy Cannon . | . . . Ballistic Gun 2 | . 1 1 Ballistic Cannon . | . . . Launcher . | . . . Special Weapon . | . . . Impact Weapon . | . . . Slashing Weapon . | . . . Piercing Weapon . | . . . Special Melee Weapon . | . . . Unidentified Prototypes 1 | . . 1 Parts Lost 3 | . 3 . Power 1 | . 1 . Propulsion 1 | . 1 . Utility . | . . . Weapon 1 | . 1 . Highest Loss Streak 2 | . 2 . To Critical Strikes . | . . . Average Slot Usage (%) 90 | . 94 71 Engine 12 | . 13 11 Treads 21 | . 24 8 Device 12 | . 13 8 Storage 13 | . 14 11 Processor 1 | . . 11 Energy Gun 19 | . 21 11 Ballistic Gun 6 | . 6 10 Peak Build Rating 11 | 6 9 11 Average Rating 7 | 4 7 8 On Entrance 4 | . 6 8 Naked Turns . | . . . Heaviest Build 28 | 11 28 28 Greatest Support 40 | 40 40 20 Greatest Overweight (x) 8 | . 1 8 Average Overweight (x) . | . . 1 Largest Inventory Capacity 15 | 8 15 15 Average Capacity 13 | 7 13 15 Most Carried 9 | 1 8 9 Average Carried 4 | . 5 6 Final Capacity 15 | 8 15 15 Final Carried 8 | 1 8 6 Class Distribution -------------------- 100% | Mutant Dominant Class ---------------- Mutant | -10/Materials Mutant | -9/Materials Resources | -11 -10 -9 ----------- Run | Yrd Mat Mat Matter Collected 316 | 260 56 . Remotely . | . . . Salvage Created 340 | . 340 . Parts 23 | . 23 . Haulers Intercepted . | . . . Recyclers Shooed 1 | . 1 . Parts Field Recycled . | . . . Retrieved Matter . | . . . Parts Self-Destructed . | . . . Prevented . | . . . Kills | -11 -10 -9 ------- Run | Yrd Mat Mat Combat Hostiles Destroyed 9 | . 9 . Guns 6 | . 6 . AOE 3 | . 3 . Classes Destroyed 4 | . 4 . Worker 2 | . 2 . Watcher 1 | . 1 . Swarmer 3 | . 3 . Grunt 6 | . 6 . Best Kill Streak 7 | . 7 . Combat Bots Only 4 | . 4 . Max Kills in Single Turn 4 | . 4 . Gunslinging . | . . . Exploded 3 | . 3 . Melee . | . . . Uniques/NPCs Destroyed . | . . . Combat | -11 -10 -9 -------- Run | Yrd Mat Mat Hostile Shots Fired 72 | . 66 6 Missed 14 | . 13 1 Damage Taken 690 | . 649 41 Core 134 | . 126 8 Absorbed by Shields . | . . . Core Remaining (%) 74 | 100 49 . Volleys Fired 39 | . 34 5 Largest 2 | . 2 2 Hottest 85 | . 85 85 Shots Fired 67 | . 59 8 Gun 67 | . 59 8 Cannon . | . . . Launcher . | . . . Special . | . . . Kinetic 19 | . 16 3 Thermal 39 | . 34 5 Explosive . | . . . Electromagnetic 9 | . 9 . Robot Hit Streak 8 | . 8 3 Robot Miss Streak 4 | . 4 2 Penetration Max . | . . . Secondary Targets 2 | . 2 . Max Gunslinging Chain 1 | . 1 . Shots Hit Robots 37 | . 33 4 Core Hits 21 | . 20 1 Critical Kills . | . . . Critical Parts Destroyed . | . . . Critical Strikes 2 | . 2 . Burn 2 | . 2 . Melee Attacks . | . . . Impact . | . . . Slashing . | . . . Piercing . | . . . Sneak Attacks . | . . . Combat Hostiles . | . . . Follow-up Attacks . | . . . Damage Inflicted 679 | . 629 50 Guns 483 | . 433 50 Cannons . | . . . Explosions 196 | . 196 . Melee . | . . . Ramming . | . . . Kinetic 94 | . 78 16 Thermal 356 | . 322 34 Explosive . | . . . Electromagnetic 229 | . 229 . Impact . | . . . Slashing . | . . . Piercing . | . . . Highest Corruption 7 | . . 7 Average Corruption 5 | . . 5 Corruption Purged . | . . . Corruption Blocked . | . . . Effects 3 | . . 3 Heat Flow Errors 1 | . . 1 Energy Discharges 1 | . . 1 Data Loss (minor) 1 | . . 1 Overload Shots . | . . . Overflow Damage . | . . . Projectiles . | . . . Explosions . | . . . Melee . | . . . Knockbacks . | . . . Impact . | . . . Kinetic . | . . . Secondary . | . . . Self-Inflicted Damage 43 | . 43 . Shots 1 | . 1 . Rammed . | . . . Targets Rammed . | . . . Kicked . | . . . Crushed . | . . . Highest Temperature 346 | . 346 96 Average Temperature 99 | . 110 32 Received Heat Transfer 300 | . 300 . Effects 3 | . 3 . Energy Bleed 1 | . 1 . Interference 2 | . 2 . Siege Activations . | . . . Robots Corrupted . | . . . Combat Hostiles . | . . . Parts Fried . | . . . Impact Corruptions . | . . . Robots Melted . | . . . Combat Hostiles . | . . . Parts Melted . | . . . Heat Transferred 929 | . 855 74 Parts Sabotaged . | . . . Parts Stolen . | . . . Parts Stripped . | . . . Power Chain Reactions 1 | . 1 . Alert | -11 -10 -9 ------- Run | Yrd Mat Mat Peak Influence 234 | . 234 41 Initial 41 | . . 41 Average 63 | . 75 41 Maximum Alert Level 1 | . 1 . Low Security (%) 97 | 100 96 100 Level 1 2 | . 3 . Level 2 . | . . . Level 3 . | . . . Level 4 . | . . . Level 5 . | . . . High Security . | . . . Max Security . | . . . Squads Dispatched 2 | . 1 1 Investigation 1 | . 1 . Extermination . | . . . Reinforcement 1 | . . 1 Assault . | . . . Garrison . | . . . Intercept . | . . . Searches Triggered . | . . . Construction Impeded . | . . . Haulers Reinforced . | . . . Active Scanning Responses . | . . . Cargo Convoy Interrupts . | . . . Stealth | -11 -10 -9 --------- Run | Yrd Mat Mat Distress Signals 2 | . 2 . Communications Jammed . | . . . Distress Signals . | . . . Times Spotted 19 | . 14 5 Peak Tracking Total 5 | . 5 4 Tactical Retreats 1 | . 1 . Traps | -11 -10 -9 ------- Run | Yrd Mat Mat Traps Triggered 4 | . . 4 Indirectly . | . . . Trap Hack Attempts . | . . . Triggered . | . . . Disarmed . | . . . Reprogrammed . | . . . Reused . | . . . Traps Extracted . | . . . Installed . | . . . Triggered . | . . . Machines | -11 -10 -9 ---------- Run | Yrd Mat Mat Machines Disabled 1 | . 1 . Max in Single Turn 1 | . 1 . Machines Repaired . | . . . Machines Dismantled . | . . . Machines Sabotaged . | . . . Overloaded Fab Kills . | . . . Hacking | -11 -10 -9 --------- Run | Yrd Mat Mat Machines Accessed 3 | . 3 . Terminals 3 | . 3 . Fabricators . | . . . Repair Stations . | . . . Recycling Units . | . . . Scanalyzers . | . . . Garrison Access . | . . . Total Hacks 9 | . 9 . Successful 5 | . 5 . Failed 4 | . 4 . Catastrophic . | . . . Database Lockouts . | . . . Manual 2 | . 2 . Terminals 9 | . 9 . Fabricators . | . . . Repair Stations . | . . . Recycling Units . | . . . Scanalyzers . | . . . Garrison Access . | . . . Terminal Hacks 5 | . 5 . Record 2 | . 2 . Dispatch Records 1 | . 1 . Maintenance Status 1 | . 1 . Zone Layout 1 | . 1 . Fabricator Hacks . | . . . Repair Station Hacks . | . . . Recycling Unit Hacks . | . . . Scanalyzer . | . . . Garrison Access Hacks . | . . . Unauthorized Hacks . | . . . Terminals . | . . . Fabricators . | . . . Repair Stations . | . . . Recycling Units . | . . . Scanalyzers . | . . . Garrison Access . | . . . Data Cores Recovered . | . . . Used . | . . . Hacking Detections 2 | . 2 . Full Trace Events 2 | . 2 . Feedback Events . | . . . Feedback Blocked . | . . . Robot Schematics Acquired . | . . . Robots Built . | . . . Authchips . | . . . Time . | . . . Total Robot Build Rating . | . . . Part Schematics Acquired . | . . . Parts Built . | . . . Authchips . | . . . Time . | . . . Total Part Build Rating . | . . . Parts Repaired . | . . . Time . | . . . Parts Recycled . | . . . Recycled Matter . | . . . Retrieved Matter . | . . . Retrieved Components . | . . . Parts Scanalyzed . | . . . Part Schematics Acquired . | . . . Parts Damaged . | . . . Bothacking | -11 -10 -9 ------------ Run | Yrd Mat Mat Used RIF Installer . | . . . Robots Hacked . | . . . Non-combat . | . . . Combat . | . . . Robot Hacks Applied . | . . . Relay Couplers Released . | . . . Fabnet Peak Effective % . | . . . Robots Rewired . | . . . Allies Hacked . | . . . Hacks Repelled . | . . . Allies | -11 -10 -9 -------- Run | Yrd Mat Mat Total Allies . | . . . Largest Group . | . . . Highest-Rated Group . | . . . Highest-Rated Ally . | . . . Total Orders . | . . . Ally Attacks . | . . . Total Damage . | . . . Kills . | . . . Allies Corrupted . | . . . Allies Melted . | . . . Intel | -11 -10 -9 ------- Run | Yrd Mat Mat Robot Analysis Total . | . . . Derelict Logs Recovered . | . . . Drone Launches . | . . . Drone Recoveries . | . . . Exploration | -11 -10 -9 ------------- Run | Yrd Mat Mat Turns Passed 908 | 79 687 142 Spaces Moved 399 | 45 309 45 Core 8 | 2 . 6 Treads 391 | 43 309 39 Legs . | . . . Wheels . | . . . Hover . | . . . Flight . | . . . Fastest Speed 50 | 50 160 240 Average Speed 186 | 155 178 268 Slowest Speed 450 | 160 240 450 Overloaded Moves . | . . . Propulsion Burnouts . | . . . Robots Hopped . | . . . Cave-ins Triggered . | . . . Exploration Rate (%) 27 | 5 65 11 Regions Visited 2 Branch Regions . Pre-discovered Areas . | . . . Known Exits Taken . | . . . Unknown Exits Taken 2 | 1 1 . Scrap Searched . | . . . Spaces Dug . | . . . Terrain Destroyed 5 | . 5 . Melee . | . . . Projectile . | . . . AOE 5 | . 5 . Terrain Rammed . | . . . Walls Destroyed . | . . . Machines Disabled . | . . . Actions | -11 -10 -9 --------- Run | Yrd Mat Mat Total 499 | 51 387 61 Wait 27 | . 27 . Move 397 | 44 308 45 Hop . | . . . Pick Up 10 | 1 7 2 Fast Attach 9 | 6 3 . Attach 5 | . 2 3 Detach 4 | . 2 2 Swap 4 | . 3 1 Drop 4 | . 1 3 Fire 39 | . 34 5 Melee . | . . . Ram . | . . . Kick . | . . . Crush . | . . . Escape Stasis . | . . . Rewire . | . . . Trap . | . . . Miscellaneous . | . . . Route ------- -11/Scrapyard -10/Materials (discovered 4 exits: [*Mat x3] / [*Min]) -9/Materials History --------- Turn | Location | Event 12 | -11/Scrapyard | Discovered new exit (range 15) 80 | -11/Scrapyard | Entered Materials 140 | -10/Materials | Discovered new exit (range 16) 263 | -10/Materials | Discovered new exit (range 5) 307 | -10/Materials | Build established: Mutant 425 | -10/Materials | Discovered new exit (range 8) 586 | -10/Materials | Core integrity fell below 50% 722 | -10/Materials | Discovered new exit (range 16) 767 | -10/Materials | Entered another Materials area 767 | -9/Materials | Evolved 2 slots: Utility x2 909 | -9/Materials | Self-destructed Last Messages --------------- R-06 Scavenger collects Faulty Imp. Assault Rifle. System corrupted: Heat flow error (+118). Triggered Shock Trap. The floor emits a surge of raw power. System corrupted (+2). Triggered Shock Trap. The floor emits a surge of raw power. System corrupted (+2). U-05 Engineer lays Concrete. Triggered Blade Trap. Massive razor-sharp blades shoot up from within the floor. Lgt. Treads severed. Structural Scanner severed. U-05 Engineer lays Concrete. System corrupted: Component data lost. Triggered Blade Trap. Massive razor-sharp blades shoot up from within the floor. Lgt. Assault Rifle severed. U-05 Engineer lays Concrete. System corrupted: Energy discharge (-41). Map ----- +----------------------------------------------------+ | ?? """ " # #### # ????????????????????? | | # # #### # ????????????????????? | | ############# #### # ????????????????????? | | ###############+#### # ????????????????????? | | ?????????## # ##????????????????????? | | ?????????## # ##????????????????????? | | ?????????## [ + ##????????????????????? | | ?????????## # ##### ##??????????????? | | ?????????## # ##### ##??????????????? | | ?????????## """ # #"""# ##??????????????? | | ?????????## """ # #"T"# # ??????????????? | | ?????????##! """ # # ??????????????? | | ?????????## # # ??????????????? | | ?????????########### """ # ??????????????? | | ?????????########### u """ # ??????????????? | | ??????????????????## """ + ??????????????? | | ??????????????????## # ??????????????? | | ??????????????????##^ # ?????????????? | | ??????????????????## ! """ ###?????????????? | | ????????????????? ##^u= """ # ?????????????? | | ????????????????? # ^ """ # ?????????????? | | ????????????????? # # ?????????????? | | ????????????????? + # ?????????????? | | ????????????????? # ^[ " " # ?????????????? | | ??????????# ###### "Y" # ?????????????? | | ??????????# @ """ ##?????????????? | | ??????????# ??????????? | | ??????????# ?????????? | | ??????????+ s ##s#########+#+????????? | | ??????????# ######s#### # ??????????? | | ??????????# ?? ??"""?????????????????? | | ??????????#?????? ??????"""????????????????? | | ????????????????? ????????"""???????????????? | | ???????????????? ?????????"????????????????? | | ??????????????? ??????????????????????????? | | ??????????????? ???????????????????????????? | | ?????????????? ???????????????????????????? | | ?????????????? ????????????????????????????? | | ?????????????####????????????????????????????? | | ?????????????????????????????????????????????? | | ?????????????????????????????????????????????? | | ?????????????????????????????????????????????? | | ?????????????????????????????????????????????? | | ?????????????????????????????????????????????? | | | | | | | | | | | | | +----------------------------------------------------+ Best States ------------- Heat Dissipation 28 Energy Generation 10 Energy Capacity 125 Matter Stores 300 Matter Capacity 300 Sight Range 18 Robot Scan Range 14 Terrain Scan Density 10 Evasion (%) 40 Recoil Reduction 2 Item Schematics ----------------- None Robot Schematics ------------------ None Fabricated ------------ Nothing Alien Tech Used ----------------- None Achievements -------------- None Challenges ------------ None Game ------ Seed BarrageBiocellInterrupter Manual? 0 Play Time 00:19:22 Cumulative 7.2 hours Start 2024.08.11 @ 15:08:14 End 2024.08.25 @ 20:33:44 Sessions 2 Manual Loads 0 Difficulty Rogue Special Mode None Game No. 11 Rogue 11 Adventurer 0 Explorer 0 Win Type - Total 0 Types 0/0/0/0/0/0/0/0/0 Lore% 4 Gallery% 10 Achievement% 10 Wizard Run 0 Options --------- Layout 0 ASCII 0 Keyboard 0 Movement Mouse Keybinds 0 Fullscreen 1 Font 24/Smallcaps Map View 56x25 Zoom Use 98% Tactical HUD 0 Map Filters NONE Filters NONE Steam 1 RUN: e7773ca1-313b-4304-aa9d-73b737145d41